fUSD/lending_fUSD_20260516
["ID","MTS","AMOUNT","RATE_DAILY","PERIOD"]
[422360946,1778872246000,-3030.07694279,0.00015,2]
[422360948,1778872246000,-151.0,0.00014999,2]
[422360949,1778872246000,-99487.75880196,0.00015,2]
[422360947,1778872246000,-361.24119804,0.00014999,2]
[422360950,1778872246000,-504.0,0.00015,2]
[422360944,1778872246000,-834.84277497,0.00012779,2]
[422360953,1778872594000,153.59,6.769e-05,2]
[422360954,1778872808000,154.79,0.00029509,120]
[422360966,1778873432000,-254.81376594,0.00012534,2]
[422360974,1778873432000,-3745.31437529,0.00012767,2]
[422360973,1778873432000,-12779.23041676,0.00012708,2]
[422360975,1778873432000,-2000.0,0.00012772,2]
[422360976,1778873432000,-3500.0,0.000128,4]
[422360980,1778873432000,-5549.56022032,0.00012982,2]
[422360979,1778873432000,-7100.0,0.000129,4]
[422360978,1778873432000,-154.79,0.00012865,2]
[422360970,1778873432000,-4311.2297,0.000127,2]
[422360982,1778873432000,-1464.89522498,0.00012983,2]
[422360981,1778873432000,-10769.76458299,0.00012982,2]
[422360977,1778873432000,-214.997284,0.00012809,2]
[422360971,1778873432000,-392.8054,0.000127,2]
[422360961,1778873432000,-1239.93710008,0.00012434,2]
[422360968,1778873432000,-1464.89522498,0.000126,2]
[422360967,1778873432000,-759.24146496,0.00012593,2]
[422360965,1778873432000,-916179.4923,0.000125,2]
[422360972,1778873432000,-3540.09438655,0.00012708,2]
[422360964,1778873432000,-3745.31437531,0.000125,2]
[422360984,1778873432000,-3745.31437529,0.00013033,2]
[422360962,1778873432000,-150.0,0.00012499,2]
[422360960,1778873432000,-16319.32480334,0.00012434,2]
[422360959,1778873432000,-300.0,0.00012433,2]
[422360957,1778873432000,-1200.0,0.00012433,2]
[422360955,1778873432000,-982.80761298,0.00012418,2]
[422360958,1778873432000,-300.0,0.00012433,2]
[422360956,1778873432000,-29.53106294,0.00012418,2]
[422360969,1778873432000,-621.74470057,0.0001261,2]
[422360985,1778873432000,-184.21,0.00013069,2]
[422360963,1778873432000,-500.0,0.00012499,2]
[422360988,1778873432000,-164.6,0.00013272,2]
[422361043,1778873432000,-509.0,0.00013445,2]
[422361044,1778873432000,-509.0,0.00013445,2]
[422361042,1778873432000,-509.0,0.00013445,2]
[422361038,1778873432000,-509.0,0.00013445,2]
[422361040,1778873432000,-509.0,0.00013445,2]
[422361041,1778873432000,-509.0,0.00013445,2]
[422361039,1778873432000,-509.0,0.00013445,2]
[422361033,1778873432000,-509.0,0.00013445,2]
[422361035,1778873432000,-509.0,0.00013445,2]
[422361029,1778873432000,-509.0,0.00013445,2]
[422361037,1778873432000,-509.0,0.00013445,2]
[422361027,1778873432000,-509.0,0.00013445,2]
[422361024,1778873432000,-509.0,0.00013445,2]
[422361012,1778873432000,-509.0,0.00013445,2]
[422360997,1778873432000,-822.55,0.00013429,2]
[422361014,1778873432000,-509.0,0.00013445,2]
[422360989,1778873432000,-166.74,0.00013278,2]
[422360986,1778873432000,-822.55,0.00013102,2]
[422360987,1778873432000,-16319.32480331,0.00013256,2]
[422360991,1778873432000,-3745.31437529,0.000133,2]
[422360999,1778873432000,-509.0,0.00013445,2]
[422360992,1778873432000,-1464.89522498,0.00013367,2]
[422361003,1778873432000,-509.0,0.00013445,2]
[422360994,1778873432000,-159.48,0.00013412,2]
[422361006,1778873432000,-509.0,0.00013445,2]
[422361009,1778873432000,-509.0,0.00013445,2]
[422361021,1778873432000,-509.0,0.00013445,2]
[422361018,1778873432000,-509.0,0.00013445,2]
[422361001,1778873432000,-509.0,0.00013445,2]
[422361059,1778873433000,-272.83358309,0.00013518,2]
[422361052,1778873433000,-150.0,0.00013488,2]
[422361054,1778873433000,-150.0,0.00013488,2]
[422361055,1778873433000,-150.46696442,0.00013488,2]
[422361053,1778873433000,-150.0,0.00013488,2]
[422361050,1778873433000,-150.0,0.00013488,2]
[422361051,1778873433000,-150.0,0.00013488,2]
[422361045,1778873433000,-509.0,0.00013445,2]
[422361047,1778873433000,-500.0,0.00013488,2]
[422361048,1778873433000,-150.0,0.00013488,2]
[422361056,1778873433000,-150.0,0.00013488,2]
[422361049,1778873433000,-150.0,0.00013488,2]
[422361046,1778873433000,-520.87202916,0.00013445,2]
[422361057,1778873433000,-272.83358309,0.00013488,2]
[422361063,1778873433000,-150.0,0.00013529,2]
[422361058,1778873433000,-272.83358309,0.00013503,2]
[422361069,1778873433000,-500.0,0.00012499,2]
[422361072,1778873433000,-708.24423702,0.0001353,2]
[422361071,1778873433000,-116.81466085,0.0001353,2]
[422361070,1778873433000,-500.0,0.00012499,2]
[422361068,1778873433000,-51.12514566,0.00012499,2]
[422361066,1778873433000,-700.19088126,0.0001353,2]
[422361062,1778873433000,-150.0,0.00013529,2]
[422361064,1778873433000,-3146.13263903,0.0001353,2]
[422361061,1778873433000,-404.401038,0.00013528,2]
[422361065,1778873433000,-3823.15770812,0.0001353,2]
[422361060,1778873433000,-150.0,0.00013523,2]
[422361067,1778873433000,-448.87485434,0.00012499,2]
[422361099,1778873437000,-3745.31437529,0.00013567,2]
[422361096,1778873437000,-498.539963,0.00013557,2]
[422361093,1778873437000,-272.83358309,0.00013533,2]
[422361094,1778873437000,-150.0,0.00013545,2]
[422361095,1778873437000,-272.83358309,0.00013548,2]
[422361091,1778873437000,-374.37695225,0.00012499,2]
[422361089,1778873437000,-500.0,0.00012499,2]
[422361090,1778873437000,-75.62304775,0.00012499,2]
[422361088,1778873437000,-81.38197316,0.00012499,2]
[422361086,1778873437000,-500.0,0.00012499,2]
[422361087,1778873437000,-418.61802684,0.00012499,2]
[422361085,1778873437000,-500.0,0.00012499,2]
[422361092,1778873437000,-7824.78467703,0.0001353,2]
[422361084,1778873437000,-500.0,0.00012499,2]
[422361097,1778873437000,-150.0,0.00013559,2]
[422361101,1778873437000,-150.0,0.00013571,2]
[422361100,1778873437000,-150.0,0.00013571,2]
[422361112,1778873437000,-272.83358309,0.00013609,2]
[422361109,1778873437000,-210.0,0.00013599,2]
[422361111,1778873437000,-2943.99,0.00013608,2]
[422361110,1778873437000,-150.0,0.00013603,2]
[422361108,1778873437000,-150.0,0.00013595,2]
[422361113,1778873437000,-150.0,0.00013613,2]
[422361098,1778873437000,-272.83358309,0.00013563,2]
[422361105,1778873437000,-208.473433,0.00013582,2]
[422361106,1778873437000,-702.139568,0.00013582,2]
[422361104,1778873437000,-150.0,0.00013581,2]
[422361103,1778873437000,-272.83358309,0.00013578,2]
[422361107,1778873437000,-272.83358309,0.00013594,2]
[422361102,1778873437000,-150.0,0.00013576,2]
[422361180,1778873438000,-240.95654341,0.00013698,2]
[422361176,1778873438000,-162.16117544,0.00013698,2]
[422361178,1778873438000,-500.0,0.00013698,2]
[422361168,1778873438000,-505.50097699,0.00013698,2]
[422361174,1778873438000,-500.0,0.00013698,2]
[422361172,1778873438000,-500.0,0.00013698,2]
[422361166,1778873438000,-500.0,0.00013698,2]
[422361163,1778873438000,-500.0,0.00013698,2]
[422361162,1778873438000,-500.0,0.00013698,2]
[422361181,1778873438000,-500.0,0.00013698,2]
[422361170,1778873438000,-549.0418679,0.00013698,2]
[422361184,1778873438000,-500.0,0.00013698,2]
[422361202,1778873438000,-500.0,0.00013698,2]
[422361186,1778873438000,-1215.65,0.00013698,2]
[422361195,1778873438000,-500.0,0.00013698,2]
[422361197,1778873438000,-500.0,0.00013698,2]
[422361187,1778873438000,-500.0,0.00013698,2]
[422361189,1778873438000,-500.0,0.00013698,2]
[422361159,1778873438000,-1106.42,0.00013698,2]
[422361191,1778873438000,-746.33,0.00013698,2]
[422361204,1778873438000,-508.43277661,0.00013698,2]
[422361208,1778873438000,-500.0,0.00013698,2]
[422361206,1778873438000,-500.0,0.00013698,2]
[422361210,1778873438000,-719.64,0.00013699,2]
[422361223,1778873438000,-163.19,0.000137,2]
[422361221,1778873438000,-272.83358309,0.000137,2]
[422361193,1778873438000,-500.0,0.00013698,2]
[422361155,1778873438000,-500.0,0.00013698,2]
[422361142,1778873438000,-500.0,0.00013698,2]
[422361140,1778873438000,-478.0,0.00013698,2]
[422361212,1778873438000,-782.09,0.00013699,2]
[422361114,1778873438000,-150.0,0.00013613,2]
[422361115,1778873438000,-1239.93710008,0.00013617,2]
[422361119,1778873438000,-272.83358309,0.00013639,2]
[422361116,1778873438000,-272.83358309,0.00013624,2]
[422361118,1778873438000,-150.0,0.0001363,2]
[422361120,1778873438000,-420.0,0.00013643,2]
[422361121,1778873438000,-150.0,0.00013654,2]
[422361122,1778873438000,-150.0,0.00013654,2]
[422361133,1778873438000,-150.0,0.00013696,2]
[422361123,1778873438000,-272.83358309,0.00013654,2]
[422361124,1778873438000,-5000.0,0.00013659,2]
[422361157,1778873438000,-1106.42,0.00013698,2]
[422361129,1778873438000,-150.0,0.00013675,2]
[422361125,1778873438000,-150.0,0.00013661,2]
[422361126,1778873438000,-150.0,0.00013664,2]
[422361131,1778873438000,-272.83358309,0.00013684,2]
[422361127,1778873438000,-150.0,0.00013666,2]
[422361130,1778873438000,-1680.0,0.00013676,2]
[422361135,1778873438000,-150.0,0.00013696,2]
[422361146,1778873438000,-500.0,0.00013698,2]
[422361149,1778873438000,-500.0,0.00013698,2]
[422361144,1778873438000,-549.88,0.00013698,2]
[422361153,1778873438000,-500.0,0.00013698,2]
[422361151,1778873438000,-500.0,0.00013698,2]
[422361138,1778873438000,-500.0,0.00013698,2]
[422361128,1778873438000,-272.83358309,0.00013669,2]
[422361224,1778873438000,-150.0,0.00013702,2]
[422361200,1778873438000,-500.0,0.00013698,2]
[422361229,1778873438000,-150.0,0.00013718,2]
[422361286,1778873438000,-150.0,0.00013769,2]
[422361290,1778873438000,-272.83358309,0.00013775,2]
[422361288,1778873438000,-150.0,0.00013773,2]
[422361301,1778873438000,-16319.32480331,0.00013804,2]
[422361299,1778873438000,-272.83358309,0.0001379,2]
[422361303,1778873438000,-272.83358309,0.00013806,2]
[422361294,1778873438000,-150.0,0.00013779,2]
[422361292,1778873438000,-150.0,0.00013776,2]
[422361305,1778873438000,-150.0,0.00013809,2]
[422361306,1778873438000,-150.0,0.00013821,2]
[422361308,1778873438000,-150.0,0.00013821,2]
[422361310,1778873438000,-272.83358309,0.00013821,2]
[422361284,1778873438000,-500.0,0.00013762,2]
[422361321,1778873438000,-150.0,0.0001384,2]
[422361331,1778873438000,-150.0,0.00013862,2]
[422361313,1778873438000,-3745.31437529,0.00013833,2]
[422361329,1778873438000,-150.0,0.00013862,2]
[422361317,1778873438000,-166.66,0.00013836,2]
[422361319,1778873438000,-272.83358309,0.00013836,2]
[422361327,1778873438000,-150.0,0.00013862,2]
[422361325,1778873438000,-272.83358309,0.00013851,2]
[422361315,1778873438000,-150.0,0.00013834,2]
[422361332,1778873438000,-272.83358309,0.00013866,2]
[422361334,1778873438000,-272.83358309,0.00013881,2]
[422361335,1778873438000,-466.72,0.00013888,2]
[422361333,1778873438000,-150.0,0.0001388,2]
[422361323,1778873438000,-150.0,0.00013844,2]
[422361296,1778873438000,-150.0,0.00013779,2]
[422361227,1778873438000,-272.83358309,0.00013715,2]
[422361276,1778873438000,-1464.89522498,0.0001375,2]
[422361219,1778873438000,-166.66,0.00013699,2]
[422361233,1778873438000,-600.0,0.00013736,2]
[422361216,1778873438000,-200.0,0.00013699,2]
[422361231,1778873438000,-272.83358309,0.0001373,2]
[422361214,1778873438000,-2500.0,0.00013699,2]
[422361235,1778873438000,-610.37457712,0.00013736,2]
[422361239,1778873438000,-2500.0,0.00013736,2]
[422361237,1778873438000,-2500.0,0.00013736,2]
[422361241,1778873438000,-2500.0,0.00013736,2]
[422361336,1778873438000,-150.0,0.00013891,2]
[422361244,1778873438000,-2500.0,0.00013736,2]
[422361246,1778873438000,-1591.06853243,0.00013736,2]
[422361252,1778873438000,-300.0,0.00013736,2]
[422361282,1778873438000,-272.83358309,0.0001376,2]
[422361248,1778873438000,-300.0,0.00013736,2]
[422361255,1778873438000,-300.0,0.00013736,2]
[422361272,1778873438000,-150.0,0.00013737,2]
[422361280,1778873438000,-822.55,0.00013757,2]
[422361270,1778873438000,-150.0,0.00013737,2]
[422361259,1778873438000,-300.0,0.00013736,2]
[422361267,1778873438000,-150.0,0.00013737,2]
[422361274,1778873438000,-272.83358309,0.00013745,2]
[422361278,1778873438000,-150.0,0.00013752,2]
[422361263,1778873438000,-294.75451596,0.00013736,2]
[422361261,1778873438000,-300.0,0.00013736,2]
[422361257,1778873438000,-300.0,0.00013736,2]
[422361250,1778873438000,-300.0,0.00013736,2]
[422361265,1778873438000,-150.0,0.00013737,2]
[422361416,1778873439000,-272.83358309,0.00014033,2]
[422361430,1778873439000,-150.0,0.00014064,2]
[422361428,1778873439000,-272.83358309,0.00014063,2]
[422361420,1778873439000,-272.83358309,0.00014048,2]
[422361422,1778873439000,-150.0,0.0001405,2]
[422361410,1778873439000,-10000.0,0.00014024,2]
[422361414,1778873439000,-150.0,0.00014029,2]
[422361418,1778873439000,-500.0,0.00014036,2]
[422361408,1778873439000,-500.0,0.00014023,2]
[422361412,1778873439000,-150.0,0.00014029,2]
[422361432,1778873439000,-150.0,0.0001407,2]
[422361425,1778873439000,-150.0,0.00014059,2]
[422361434,1778873439000,-150.0,0.0001407,2]
[422361449,1778873439000,-150.0,0.00014105,2]
[422361451,1778873439000,-272.83358309,0.00014108,2]
[422361442,1778873439000,-272.83358309,0.00014093,2]
[422361436,1778873439000,-16319.32480331,0.00014078,2]
[422361460,1778873439000,-150.0,0.00014122,2]
[422361457,1778873439000,-150.0,0.00014112,2]
[422361455,1778873439000,-150.0,0.00014112,2]
[422361440,1778873439000,-822.55,0.00014084,2]
[422361444,1778873439000,-150.0,0.00014094,2]
[422361446,1778873439000,-3745.31437529,0.000141,2]
[422361464,1778873439000,-150.0,0.0001413,2]
[422361462,1778873439000,-272.83358309,0.00014123,2]
[422361473,1778873439000,-150.0,0.00014154,2]
[422361406,1778873439000,-500.0,0.00014023,2]
[422361453,1778873439000,-166.66,0.0001411,2]
[422361404,1778873439000,-150.0,0.00014023,2]
[422361360,1778873439000,-150.0,0.00013949,2]
[422361393,1778873439000,-250.0,0.00014,2]
[422361345,1778873439000,-272.83358309,0.00013912,2]
[422361340,1778873439000,-150.0,0.00013904,2]
[422361347,1778873439000,-150.0,0.00013916,2]
[422361349,1778873439000,-272.83358309,0.00013927,2]
[422361354,1778873439000,-272.83358309,0.00013942,2]
[422361338,1778873439000,-272.83358309,0.00013896,2]
[422361343,1778873439000,-150.0,0.00013904,2]
[422361351,1778873439000,-150.0,0.00013928,2]
[422361356,1778873439000,-150.0,0.00013946,2]
[422361367,1778873439000,-272.83358309,0.00013957,2]
[422361374,1778873439000,-150.0,0.00013987,2]
[422361369,1778873439000,-272.83358309,0.00013972,2]
[422361376,1778873439000,-150.0,0.00013987,2]
[422361402,1778873439000,-272.83358309,0.00014017,2]
[422361371,1778873439000,-166.66,0.00013973,2]
[422361466,1778873439000,-1464.89522498,0.00014133,2]
[422361365,1778873439000,-150.0,0.00013956,2]
[422361362,1778873439000,-150.0,0.00013952,2]
[422361358,1778873439000,-150.0,0.00013946,2]
[422361380,1778873439000,-150.0,0.00013987,2]
[422361384,1778873439000,-2730.1767011,0.0001399,2]
[422361391,1778873439000,-500.0,0.00014,2]
[422361386,1778873439000,-500.0,0.00014,2]
[422361388,1778873439000,-500.0,0.00014,2]
[422361399,1778873439000,-150.0,0.00014017,2]
[422361382,1778873439000,-272.83358309,0.00013987,2]
[422361397,1778873439000,-150.0,0.00014006,2]
[422361395,1778873439000,-272.83358309,0.00014002,2]
[422361378,1778873439000,-150.0,0.00013987,2]
[422361475,1778873439000,-150.0,0.00014154,2]
[422361438,1778873439000,-272.83358309,0.00014078,2]
[422361477,1778873439000,-272.83358309,0.00014154,2]
[422361537,1778873439000,-150.0,0.00014308,2]
[422361539,1778873439000,-500.0,0.0001431,2]
[422361541,1778873439000,-150.0,0.0001432,2]
[422361543,1778873439000,-150.0,0.0001432,2]
[422361552,1778873439000,-272.83358309,0.00014351,2]
[422361558,1778873439000,-500.0,0.00014357,2]
[422361548,1778873439000,-272.83358309,0.00014335,2]
[422361551,1778873439000,-150.0,0.00014344,2]
[422361562,1778873439000,-500.0,0.00014357,2]
[422361545,1778873439000,-272.83358309,0.0001432,2]
[422361554,1778873439000,-16319.32480331,0.00014352,2]
[422361560,1778873439000,-746.33,0.00014357,2]
[422361557,1778873439000,-150.0,0.00014352,2]
[422361565,1778873439000,-642.29736269,0.00014357,2]
[422361567,1778873439000,-150.0,0.00014362,2]
[422361577,1778873439000,-150.0,0.00014369,2]
[422361579,1778873439000,-150.0,0.0001438,2]
[422361573,1778873439000,-3745.31437529,0.00014367,2]
[422361581,1778873439000,-272.83358309,0.00014381,2]
[422361569,1778873439000,-150.0,0.00014362,2]
[422361584,1778873439000,-166.66,0.00014384,2]
[422361575,1778873439000,-2000.0,0.00014369,2]
[422361571,1778873439000,-272.83358309,0.00014366,2]
[422361588,1778873439000,-14200.0,0.000144,5]
[422361586,1778873439000,-272.83358309,0.00014396,2]
[422361590,1778873439000,-150.0,0.00014404,2]
[422361592,1778873439000,-150.0,0.00014404,2]
[422361594,1778873439000,-150.0,0.0001441,2]
[422361471,1778873439000,-150.0,0.00014143,2]
[422361518,1778873439000,-150.0,0.00014273,2]
[422361535,1778873439000,-272.83358309,0.00014305,2]
[422361547,1778873439000,-150.0,0.00014331,2]
[422361520,1778873439000,-272.83358309,0.00014275,2]
[422361533,1778873439000,-10700.0,0.000143,5]
[422361468,1778873439000,-272.83358309,0.00014139,2]
[422361485,1778873439000,-272.83358309,0.00014184,2]
[422361486,1778873439000,-955.78216006,0.00014189,2]
[422361481,1778873439000,-272.83358309,0.00014169,2]
[422361483,1778873439000,-150.0,0.00014179,2]
[422361488,1778873439000,-150.0,0.00014195,2]
[422361487,1778873439000,-150.0,0.00014193,2]
[422361499,1778873439000,-150.0,0.00014237,2]
[422361490,1778873439000,-150.0,0.00014195,2]
[422361501,1778873439000,-150.0,0.00014237,2]
[422361503,1778873439000,-150.0,0.00014237,2]
[422361496,1778873439000,-272.83358309,0.00014214,2]
[422361493,1778873439000,-150.0,0.00014201,2]
[422361505,1778873439000,-150.0,0.00014237,2]
[422361479,1778873439000,-150.0,0.00014166,2]
[422361516,1778873439000,-272.83358309,0.0001426,2]
[422361497,1778873439000,-272.83358309,0.00014229,2]
[422361523,1778873439000,-150.0,0.00014279,2]
[422361521,1778873439000,-150.0,0.00014279,2]
[422361529,1778873439000,-272.83358309,0.0001429,2]
[422361525,1778873439000,-150.0,0.00014281,2]
[422361527,1778873439000,-466.72784303,0.00014287,2]
[422361531,1778873439000,-150.0,0.00014295,2]
[422361512,1778873439000,-272.83358309,0.00014245,2]
[422361509,1778873439000,-150.0,0.00014237,2]
[422361492,1778873439000,-272.83358309,0.00014199,2]
[422361507,1778873439000,-150.0,0.00014237,2]
[422361514,1778873439000,-166.66,0.00014247,2]
[422361684,1778873440000,-272.83358309,0.00014578,2]
[422361673,1778873440000,-272.83358309,0.00014547,2]
[422361686,1778873440000,-150.0,0.00014583,2]
[422361676,1778873440000,-150.0,0.00014558,2]
[422361678,1778873440000,-272.83358309,0.00014562,2]
[422361682,1778873440000,-150.0,0.0001457,2]
[422361722,1778873440000,-150.0,0.00014653,2]
[422361670,1778873440000,-272.83358309,0.00014532,2]
[422361668,1778873440000,-150.0,0.00014528,2]
[422361666,1778873440000,-150.0,0.00014528,2]
[422361663,1778873440000,-150.0,0.00014525,2]
[422361672,1778873440000,-150.0,0.00014546,2]
[422361648,1778873440000,-988.83702913,0.00014513,2]
[422361680,1778873440000,-150.0,0.0001457,2]
[422361690,1778873440000,-272.83358309,0.00014593,2]
[422361711,1778873440000,-3745.31437529,0.00014633,2]
[422361692,1778873440000,-150.0,0.00014594,2]
[422361695,1778873440000,-3500.0,0.000146,5]
[422361697,1778873440000,-272.83358309,0.00014608,2]
[422361699,1778873440000,-150.0,0.00014612,2]
[422361707,1778873440000,-16319.32480331,0.00014626,2]
[422361713,1778873440000,-150.0,0.00014634,2]
[422361706,1778873440000,-272.83358309,0.00014623,2]
[422361709,1778873440000,-150.0,0.00014629,2]
[422361701,1778873440000,-150.0,0.00014612,2]
[422361716,1778873440000,-272.83358309,0.00014638,2]
[422361703,1778873440000,-150.0,0.00014612,2]
[422361720,1778873440000,-150.0,0.00014653,2]
[422361661,1778873440000,-150.0,0.00014522,2]
[422361688,1778873440000,-500.0,0.00014584,2]
[422361652,1778873440000,-367.18619809,0.00014513,2]
[422361602,1778873440000,-350.0,0.00014424,2]
[422361650,1778873440000,-186.80573571,0.00014513,2]
[422361718,1778873440000,-150.0,0.0001464,2]
[422361604,1778873440000,-150.0,0.00014424,2]
[422361598,1778873440000,-822.55,0.00014412,2]
[422361606,1778873440000,-272.83358309,0.00014426,2]
[422361600,1778873440000,-150.0,0.00014415,2]
[422361612,1778873440000,-150.0,0.00014445,2]
[422361596,1778873440000,-272.83358309,0.00014411,2]
[422361610,1778873440000,-150.0,0.00014445,2]
[422361608,1778873440000,-272.83358309,0.00014441,2]
[422361614,1778873440000,-150.0,0.00014451,2]
[422361616,1778873440000,-2338.45866313,0.00014455,2]
[422361628,1778873440000,-150.0,0.00014468,2]
[422361618,1778873440000,-272.83358309,0.00014456,2]
[422361630,1778873440000,-272.83358309,0.00014472,2]
[422361632,1778873440000,-150.0,0.00014487,2]
[422361624,1778873440000,-500.0,0.00014466,2]
[422361620,1778873440000,-150.0,0.00014457,2]
[422361622,1778873440000,-500.0,0.00014466,2]
[422361626,1778873440000,-500.0,0.00014466,2]
[422361638,1778873440000,-150.0,0.00014487,2]
[422361636,1778873440000,-150.0,0.00014487,2]
[422361640,1778873440000,-272.83358309,0.00014487,2]
[422361634,1778873440000,-150.0,0.00014487,2]
[422361642,1778873440000,-17800.0,0.000145,5]
[422361644,1778873440000,-272.83358309,0.00014502,2]
[422361654,1778873440000,-1134.9893546,0.00014513,2]
[422361656,1778873440000,-1464.89522498,0.00014517,2]
[422361657,1778873440000,-272.83358309,0.00014517,2]
[422361659,1778873440000,-150.0,0.00014518,2]
[422361646,1778873440000,-5000.0,0.0001451,2]
[422361735,1778873440000,-150.0,0.00014695,2]
[422361798,1778873440000,-150.0,0.0001482,2]
[422361726,1778873440000,-150.0,0.00014665,2]
[422361790,1778873440000,-272.83358309,0.00014805,2]
[422361787,1778873440000,-1239.93710008,0.000148,2]
[422361793,1778873440000,-150.0,0.0001481,2]
[422361815,1778873440000,-969.09306,0.0001486,2]
[422361800,1778873440000,-272.83358309,0.0001482,2]
[422361805,1778873440000,-150.0,0.00014844,2]
[422361803,1778873440000,-200.0,0.00014841,2]
[422361802,1778873440000,-272.83358309,0.00014835,2]
[422361795,1778873440000,-150.0,0.00014813,2]
[422361797,1778873440000,-150.0,0.0001482,2]
[422361808,1778873440000,-969.09305,0.0001485,2]
[422361813,1778873440000,-500.0,0.00014858,2]
[422361812,1778873440000,-272.83358309,0.0001485,2]
[422361807,1778873440000,-29964.16918207,0.0001485,2]
[422361810,1778873440000,-969.09306,0.0001485,2]
[422361817,1778873440000,-469.94,0.0001486,2]
[422361818,1778873440000,-469.94,0.0001486,2]
[422361821,1778873440000,-150.0,0.00014861,2]
[422361820,1778873440000,-150.0,0.00014861,2]
[422361823,1778873440000,-97.31261693,0.00014865,2]
[422361830,1778873440000,-500.0,0.00014873,2]
[422361825,1778873440000,-175.52096616,0.00014865,2]
[422361828,1778873440000,-500.0,0.00014873,2]
[422361833,1778873440000,-5000.0,0.00014874,2]
[422361831,1778873440000,-5627.41122331,0.00014874,2]
[422361834,1778873440000,-449.2726384,0.00014874,2]
[422361836,1778873440000,-200.0,0.00014879,2]
[422361738,1778873440000,-150.0,0.00014698,2]
[422361827,1778873440000,-150.0,0.00014871,2]
[422361792,1778873440000,-150.0,0.00014808,2]
[422361785,1778873440000,-275.69094608,0.000148,2]
[422361838,1778873440000,-150.0,0.00014879,2]
[422361782,1778873440000,-272.83358309,0.0001479,2]
[422361784,1778873440000,-150.0,0.00014799,2]
[422361739,1778873440000,-272.83358309,0.00014699,2]
[422361728,1778873440000,-350.0,0.00014666,2]
[422361729,1778873440000,-272.83358309,0.00014668,2]
[422361733,1778873440000,-150.0,0.00014695,2]
[422361731,1778873440000,-272.83358309,0.00014684,2]
[422361742,1778873440000,-1106.42,0.00014699,2]
[422361744,1778873440000,-3500.0,0.000147,5]
[422361746,1778873440000,-150.0,0.00014701,2]
[422361759,1778873440000,-150.0,0.00014737,2]
[422361761,1778873440000,-150.0,0.00014737,2]
[422361748,1778873440000,-150.0,0.00014705,2]
[422361765,1778873440000,-272.83358309,0.00014744,2]
[422361767,1778873440000,-300.0,0.00014755,2]
[422361753,1778873440000,-150.0,0.00014722,2]
[422361723,1778873440000,-272.83358309,0.00014653,2]
[422361764,1778873440000,-150.0,0.00014737,2]
[422361757,1778873440000,-150.0,0.00014737,2]
[422361789,1778873440000,-3500.0,0.000148,5]
[422361777,1778873440000,-150.0,0.00014778,2]
[422361779,1778873440000,-172.838,0.0001478,2]
[422361776,1778873440000,-150.0,0.00014778,2]
[422361775,1778873440000,-272.83358309,0.00014774,2]
[422361781,1778873440000,-785.593,0.00014784,2]
[422361771,1778873440000,-272.83358309,0.00014759,2]
[422361750,1778873440000,-272.83358309,0.00014714,2]
[422361755,1778873440000,-272.83358309,0.00014729,2]
[422361769,1778873440000,-150.0,0.00014756,2]
[422361766,1778873440000,-200.0,0.00014752,2]
[422361773,1778873440000,-150.0,0.00014772,2]
[422361923,1778873441000,-350.0,0.00014961,2]
[422361924,1778873441000,-500.0,0.0001497,2]